fUSD/lending_fUSD_20241018
["ID","MTS","AMOUNT","RATE_DAILY","PERIOD"]
[340461001,1729271445525,-324.07892542,0.00024931,2]
[340461002,1729271445536,-500.0,0.00024931,2]
[340461003,1729271445548,-154.94262411,0.00024931,2]
[340461004,1729271445561,-345.05737589,0.00024931,2]
[340461005,1729271445572,-500.0,0.00024931,2]
[340461006,1729271445583,-500.0,0.00024931,2]
[340461007,1729271445593,-500.0,0.00024931,2]
[340461008,1729271445604,-158.5127659,0.00024931,2]
[340461009,1729271445618,-205.65932613,0.00024931,2]
[340461010,1729271445631,-294.34067387,0.00024931,2]
[340461011,1729271445642,-500.0,0.00024931,2]
[340461012,1729271445664,-500.0,0.00024931,2]
[340461013,1729271445685,-500.0,0.00024931,2]
[340461014,1729271445708,-500.0,0.00024931,2]
[340461015,1729271445731,-500.0,0.00024931,2]
[340461016,1729271445753,-335.66596613,0.00024931,2]
[340461017,1729271445780,-164.33403387,0.00024931,2]
[340461018,1729271445805,-500.0,0.00024931,2]
[340461019,1729271445832,-367.69596613,0.00024931,2]
[340461020,1729271445861,-132.30403387,0.00024931,2]
[340461022,1729271445885,-500.0,0.00024931,2]
[340461024,1729271445895,-500.0,0.00024931,2]
[340461026,1729271445905,-500.0,0.00024931,2]
[340461027,1729271445914,-500.0,0.00024931,2]
[340461028,1729271445924,-500.0,0.00024931,2]
[340461030,1729271445934,-500.0,0.00024931,2]
[340461031,1729271445944,-500.0,0.00024931,2]
[340461032,1729271445953,-500.0,0.00024931,2]
[340461033,1729271445963,-446.28558742,0.00024931,2]
[340461034,1729271445973,-547.75937785,0.00024931,2]
[340461035,1729271445983,-500.0,0.00024931,2]
[340461036,1729271445992,-500.0,0.00024931,2]
[340461037,1729271446002,-500.0,0.00024931,2]
[340461038,1729271446012,-500.0,0.00024931,2]
[340461039,1729271446022,-500.0,0.00024931,2]
[340461040,1729271446032,-500.0,0.00024931,2]
[340461041,1729271446041,-500.0,0.00024931,2]
[340461042,1729271446051,-500.0,0.00024931,2]
[340461043,1729271446061,-500.0,0.00024931,2]
[340461044,1729271446071,-500.0,0.00024931,2]
[340461045,1729271446082,-500.0,0.00024931,2]
[340461046,1729271446092,-500.0,0.00024931,2]
[340461047,1729271446103,-500.0,0.00024931,2]
[340461048,1729271446113,-500.0,0.00024931,2]
[340461049,1729271446123,-500.0,0.00024931,2]
[340461050,1729271446133,-500.0,0.00024931,2]
[340461051,1729271446142,-500.0,0.00024931,2]
[340461052,1729271446152,-500.0,0.00024931,2]
[340461053,1729271446162,-500.0,0.00024931,2]
[340461054,1729271446173,-500.0,0.00024931,2]
[340461055,1729271446183,-500.0,0.00024931,2]
[340461056,1729271446193,-500.0,0.00024931,2]
[340461057,1729271446205,-500.0,0.00024931,2]
[340461058,1729271446215,-500.0,0.00024931,2]
[340461059,1729271446225,-500.0,0.00024931,2]
[340461060,1729271446235,-500.0,0.00024931,2]
[340461061,1729271446245,-500.0,0.00024931,2]
[340461062,1729271446256,-500.0,0.00024931,2]
[340461063,1729271446266,-500.0,0.00024931,2]
[340461064,1729271446275,-500.0,0.00024931,2]
[340461065,1729271446286,-500.0,0.00024931,2]
[340461066,1729271446296,-500.0,0.00024931,2]
[340461067,1729271446306,-500.0,0.00024931,2]
[340461068,1729271446316,-500.0,0.00024931,2]
[340461069,1729271446327,-567.44582198,0.00024931,2]
[340461070,1729271446337,-500.0,0.00024931,2]
[340461071,1729271446347,-500.0,0.00024931,2]
[340461072,1729271446358,-500.0,0.00024931,2]
[340461073,1729271446368,-325.54272749,0.00024931,2]
[340461074,1729271446378,-500.0,0.00024931,2]
[340461075,1729271446388,-500.0,0.00024931,2]
[340461076,1729271446399,-500.0,0.00024931,2]
[340461077,1729271446410,-500.0,0.00024931,2]
[340461078,1729271446424,-500.0,0.00024931,2]
[340461079,1729271446435,-254.96040393,0.00024931,2]
[340461080,1729271446448,-500.0,0.00024931,2]
[340461081,1729271446460,-500.0,0.00024931,2]
[340461082,1729271446472,-500.0,0.00024931,2]
[340461083,1729271446483,-525.56,0.00024931,2]
[340461084,1729271446493,-500.0,0.00024931,2]
[340461085,1729271446504,-525.56,0.00024931,2]
[340461086,1729271446515,-500.0,0.00024931,2]
[340461087,1729271446527,-237.73257894,0.00024931,2]
[340461088,1729271446538,-525.56,0.00024931,2]
[340461089,1729271446549,-27.1399456,0.00024931,2]
[340461090,1729271446599,-498.4200544,0.00024931,2]
[340461091,1729271446614,-169.65051459,0.00024931,2]
[340461092,1729271466036,150.0,0.000119,2]
[340461093,1729271479579,150.0,0.00027,60]
[340461094,1729271530089,222.8,0.000119,2]
[340461095,1729271591869,989.24,0.00023429,120]
[340461101,1729272192113,475.332422,0.00026899,120]
[340461102,1729272198989,500.0,0.00026899,120]
[340461103,1729272205404,200.0,0.00026899,120]
[340461107,1729272417214,190.87189506,0.00027,60]
[340461108,1729272426136,-2531.34130815,0.00010859,2]
[340461109,1729272426157,-1052.62812005,0.00010958,2]
[340461110,1729272426176,-250.76,0.00010959,2]
[340461111,1729272426196,-258.48949042,0.00010999,2]
[340461112,1729272426220,-81521.23410109,0.00011,2]
[340461113,1729272442138,-500.0,0.00010973,2]
[340461114,1729272442161,-1494.79833651,0.00011,2]
[340461122,1729272631633,-6876.78871057,0.000109,2]
[340461123,1729272631643,-123860.98356626,0.00011,2]
[340461124,1729272631654,-6822.66290055,0.00011,2]
[340461125,1729272631670,-324.2343219,0.00011,2]
[340461129,1729272631775,-367.70556,0.00011,2]
[340461130,1729272631850,-6510.898581,0.00011,2]
[340461131,1729272631871,-1918.86696003,0.00011,2]
[340461132,1729272631937,-689.58642,0.00011,2]
[340461133,1729272631948,-132500.00000012,0.00011,2]
[340461134,1729272631962,-203573.07060017,0.00011,2]
[340461139,1729272637781,-1000.0,0.00011,2]
[340461142,1729272637868,-603.15285,0.00011,2]
[340461143,1729272637879,-410.82807031,0.00011,2]
[340461144,1729272637891,-1018.16644036,0.00011,2]
[340461145,1729272637902,-636.30057573,0.00011,2]
[340461146,1729272637944,-1050.0,0.00011,2]
[340461147,1729272637956,-1599.21665465,0.00011,2]
[340461148,1729272637973,-687.57856197,0.00011,2]
[340461149,1729272637986,-2252.52733061,0.00011,2]
[340461150,1729272637996,-670.91304256,0.00011,2]
[340461151,1729272638065,-9512.71608898,0.00011,2]
[340461152,1729272638077,-544.61761896,0.00011,2]
[340461153,1729272638088,-19453.41639563,0.00011,2]
[340461154,1729272638099,-445.42957939,0.00011,2]
[340461155,1729272638114,-401.06482223,0.00011,2]
[340461156,1729272638168,-49987.76090814,0.00011,2]
[340461157,1729272638180,-1414.17,0.00011,2]
[340461158,1729272638191,-539.06429943,0.00011,2]
[340461161,1729272639674,-21588.83212579,0.00011,2]
[340461162,1729272639686,-1533.9015321,0.00011,2]
[340461163,1729272639749,-1040.26083,0.00011,2]
[340461164,1729272639947,-1822.53339675,0.00011,2]
[340461173,1729272644046,-428.8894702,0.00010973,2]
[340461183,1729272645881,-71.1105298,0.00010973,2]
[340461184,1729272645891,-17136.10529068,0.00011,2]
[340461185,1729272645903,-55063.73631687,0.00011,2]
[340461204,1729272797491,500.0,0.00027,120]
[340461205,1729272802844,200.0,0.00027,120]
[340461206,1729272863957,773.45,0.00027,60]
[340461207,1729272878699,773.44,0.00027,60]
[340461208,1729273164153,-150.0,0.00010899,2]
[340461209,1729273164177,-300.0,0.00010899,2]
[340461210,1729273164200,-433.2501,0.000109,2]
[340461211,1729273164222,-962.6503,0.000109,2]
[340461212,1729273164244,-7576.5296,0.000109,2]
[340461213,1729273164265,-178.768,0.000109,2]
[340461214,1729273164288,-2151.05723375,0.000109,2]
[340461215,1729273164310,-5207.528,0.000109,2]
[340461216,1729273164331,-4857.2465,0.000109,2]
[340461217,1729273164352,-3766.3612,0.000109,2]
[340461218,1729273164373,-34454.1671,0.000109,2]
[340461219,1729273164394,-176.47,0.00010959,2]
[340461220,1729273164414,-203.58326995,0.00010973,2]
[340461221,1729273164440,-6939582.3886963,0.00011,2]
[340461222,1729273210368,250.0,0.00027,60]
[340461224,1729273302425,-7833.0,0.00011,2]
[340461227,1729273398915,500.0,0.00026899,120]
[340461228,1729273404131,200.0,0.00026899,120]
[340461232,1729273578570,-1050.0,0.000108,2]
[340461233,1729273629111,-237.05371502,0.000108,2]
[340461234,1729273629132,-989.63626018,0.000109,2]
[340461235,1729273630769,966.83,0.00027,60]
[340461236,1729273631128,-1222.92364018,0.000109,2]
[340461237,1729273631149,-567.51035095,0.000109,2]
[340461238,1729273645151,-277.06734905,0.000109,2]
[340461239,1729273645175,-49.68473896,0.00011,2]
[340461248,1729273831943,-1460.46853907,0.0001089,2]
[340461249,1729273831968,-2287.22638141,0.0001089,2]
[340461250,1729273831977,-3493.3035,0.000109,2]
[340461251,1729273831987,-163.86,0.00010959,2]
[340461252,1729273831996,-56836.38247702,0.00011,2]
[340461267,1729273837963,-3004.77979999,0.00011,2]
[340461287,1729273838156,-9429.58170783,0.00011,2]
[340461301,1729273839890,-5030.36190276,0.00011,2]
[340461302,1729273840056,-1893.0,0.00011,2]
[340461314,1729273842973,-3860.51907016,0.00011,2]
[340461315,1729273842989,-1323.44216416,0.00011,2]
[340461316,1729273843024,-985.67208705,0.00011,2]
[340461317,1729273843038,-264.85,0.00011,2]
[340461329,1729273846089,-2117.0442362,0.00011,2]
[340461575,1729273998129,500.0,0.0002694,120]
[340461576,1729274003763,200.0,0.0002694,120]
[340461577,1729274101489,263.50090852,0.00027,60]
[340461578,1729274150672,550.0,0.0001,2]
[340461581,1729274596141,500.0,0.0002694,120]
[340461582,1729274601468,200.0,0.0002694,120]
[340461583,1729274825110,-633.3205,0.00010789,2]
[340461584,1729274825139,-300.0,0.00010889,2]
[340461585,1729274825168,-8297.3240977,0.0001089,2]
[340461586,1729274958205,-300.0,0.00010889,2]
[340461587,1729274958227,-18086.07486698,0.0001089,2]
[340461588,1729274958250,-2577.5368398,0.00010899,2]
[340461589,1729274958272,-150.0,0.00010899,2]
[340461590,1729274958294,-1682.2527,0.000109,2]
[340461591,1729274958316,-4336.44835655,0.000109,2]
[340461599,1729275032016,-1100.3792,0.000108,2]
[340461600,1729275032025,-149.40952132,0.000109,2]
[340461601,1729275032036,-752.17210597,0.000109,2]
[340461602,1729275032051,-7776.89948567,0.000109,2]
[340461603,1729275032063,-393.3952172,0.000109,2]
[340461604,1729275032079,-621.77146932,0.000109,2]
[340461605,1729275032091,-1099.97243844,0.000109,2]
[340461606,1729275032111,-29954.30071245,0.000109,2]
[340461607,1729275032122,-2772.84331179,0.000109,2]
[340461608,1729275032133,-3600.0,0.000109,2]
[340461609,1729275032144,-431.15035491,0.000109,2]
[340461610,1729275032156,-6246.33253183,0.000109,2]
[340461611,1729275032167,-1902.04681893,0.000109,2]
[340461612,1729275032183,-270.54903608,0.000109,2]
[340461613,1729275032195,-490.4981613,0.000109,2]
[340461614,1729275032288,-1112.92161359,0.000109,2]
[340461615,1729275032300,-814.99724662,0.000109,2]
[340461616,1729275032311,-1335.27392991,0.000109,2]
[340461617,1729275032323,-1080.79234568,0.000109,2]
[340461618,1729275032334,-1028.79,0.000109,2]
[340461619,1729275032345,-4507.06363913,0.000109,2]
[340461620,1729275032357,-3186.53480063,0.000109,2]
[340461622,1729275032367,-6278.08455896,0.000109,2]
[340461624,1729275032379,-689.78279024,0.000109,2]
[340461627,1729275032390,-555.249,0.000109,2]
[340461629,1729275032401,-399.53446586,0.000109,2]
[340461632,1729275032427,-378.25609224,0.000109,2]
[340461635,1729275032439,-9669.50989184,0.000109,2]
[340461709,1729275038039,-967.26002223,0.000109,2]
[340461710,1729275038138,-6629.228122,0.000109,2]
[340461711,1729275038167,-892.85,0.000109,2]
[340461712,1729275038188,-54269.21735931,0.000109,2]
[340461713,1729275038197,-182.92417127,0.000109,2]
[340461714,1729275038206,-180.13590472,0.000109,2]
[340461715,1729275038215,-1345.73785208,0.00010958,2]
[340461716,1729275038224,-263.22,0.00010959,2]
[340461717,1729275038234,-196.98,0.00010959,2]
[340461718,1729275038243,-164.15,0.00010959,2]
[340461719,1729275038252,-187.5332026,0.0001099,2]
[340461720,1729275038261,-231.94223924,0.00010999,2]
[340461721,1729275038270,-499.99,0.00010999,2]
[340461722,1729275038280,-299.99,0.00010999,2]
[340461723,1729275038289,-198.1744672,0.00010999,2]
[340461724,1729275038299,-500.0,0.00010999,2]
[340461725,1729275038308,-500.0,0.00010999,2]
[340461726,1729275038317,-500.68734814,0.00010999,2]
[340461727,1729275038327,-170.58455971,0.00010999,2]
[340461728,1729275038336,-505.33874136,0.00010999,2]
[340461729,1729275038345,-500.0,0.00010999,2]
[340461730,1729275038354,-157.18290822,0.00010999,2]
[340461731,1729275038363,-500.0,0.00010999,2]
[340461732,1729275038373,-500.0,0.00010999,2]
[340461733,1729275038382,-500.0,0.00010999,2]
[340461734,1729275038391,-500.0,0.00010999,2]
[340461735,1729275038400,-500.0,0.00010999,2]
[340461736,1729275038409,-500.0,0.00010999,2]
[340461737,1729275038419,-500.0,0.00010999,2]
[340461738,1729275038428,-500.0,0.00010999,2]
[340461739,1729275038437,-500.0,0.00010999,2]
[340461740,1729275038446,-500.0,0.00010999,2]
[340461741,1729275038455,-500.0,0.00010999,2]
[340461742,1729275038464,-500.0,0.00010999,2]
[340461744,1729275038474,-500.0,0.00010999,2]
[340461746,1729275038483,-252332.73226509,0.00011,2]
[340461748,1729275038495,-449864.1596,0.00011,2]
[340461751,1729275038514,-379.69072843,0.00011,2]
[340461753,1729275038524,-10596.42864451,0.00011,2]
[340461755,1729275038535,-1000.43601839,0.00011,2]
[340461763,1729275038612,-7082.42619723,0.00011,2]
[340461776,1729275040051,-1259.96086,0.00011,2]
[340461777,1729275040062,-382.05536367,0.00011,2]
[340461778,1729275040076,-1206.83348292,0.00011,2]
[340461779,1729275040087,-1437.52246277,0.00011,2]
[340461780,1729275040099,-1333.31807868,0.00011,2]
[340461781,1729275040111,-42835.88502656,0.00011,2]
[340461782,1729275040122,-89099.0984953,0.00011,2]
[340461783,1729275040133,-94356.13537952,0.00011,2]
[340461784,1729275040144,-61549.54393348,0.00011,2]
[340461785,1729275040155,-1275.2531778,0.00011,2]
[340461786,1729275040166,-1748.56626615,0.00011,2]
[340461787,1729275040178,-1467.8621135,0.00011,2]
[340461788,1729275040189,-2887.99024777,0.00011,2]
[340461789,1729275040200,-96264.76224085,0.00011,2]
[340461790,1729275040210,-32080.43223084,0.00011,2]
[340461791,1729275040222,-2025.26791969,0.00011,2]
[340461792,1729275040233,-379.9422459,0.00011,2]
[340461793,1729275040244,-577.56395989,0.00011,2]
[340461794,1729275040255,-619.39818052,0.00011,2]
[340461795,1729275040274,-411.258,0.00011,2]
[340461796,1729275040285,-1187.17816623,0.00011,2]
[340461797,1729275040296,-278.74945087,0.00011,2]
[340461798,1729275040306,-585.43,0.00011,2]
[340461799,1729275040316,-111.27731183,0.00011135,2]
[340461800,1729275040327,-529.37268817,0.00011135,2]
[340461801,1729275040336,-150.0,0.00011945,2]
[340461802,1729275040346,-354.07,0.00011945,2]
[340461803,1729275040355,-384.23293737,0.00011945,2]
[340461804,1729275040366,-288.95155113,0.00011945,2]
[340461805,1729275040385,-48.6755115,0.00011945,2]
[340461806,1729275040394,-170.14,0.00012191,2]
[340461808,1729275040403,-2598.7705515,0.00012207,2]
[340461810,1729275040414,-674.47609604,0.00012207,2]
[340461812,1729275040425,-584.36335246,0.00012207,2]
[340461814,1729275040434,-446.19598536,0.00012273,2]
[340461816,1729275040444,-495.55389865,0.00012273,2]
[340461818,1729275040456,-554.38011599,0.00012273,2]
[340461820,1729275040465,-533.08158214,0.000123,2]
[340461822,1729275040481,-1131.59228596,0.000123,2]
[340461824,1729275040513,-22235.3261319,0.000123,2]
[340461825,1729275040522,-250.0,0.00012305,2]
[340461826,1729275040532,-1517.14053989,0.00012367,2]
[340461827,1729275040543,-650.0,0.00012367,2]
[340461828,1729275040554,-410.3962999,0.00012367,2]
[340461829,1729275040563,-179.3,0.00012384,2]
[340461830,1729275040573,-266.4,0.00012493,2]
[340461831,1729275040582,-250.0,0.00012645,2]
[340461832,1729275040591,-250.0,0.00012791,2]
[340461833,1729275040600,-200.0,0.00013063,2]
[340461834,1729275040610,-266.4,0.00013118,2]
[340461835,1729275040619,-150.0,0.0001326,2]
[340461836,1729275040628,-640.65,0.00013399,2]
[340461837,1729275040639,-266.4,0.00013743,2]
[340461838,1729275040648,-1061.46509525,0.000138,2]
[340461839,1729275040661,-1909.0,0.000138,2]
[340461840,1729275040673,-4588.83331553,0.000138,2]
[340461841,1729275040685,-365.00244668,0.000138,2]
[340461842,1729275040696,-4187.84805121,0.000138,2]
[340461843,1729275040706,-500.0,0.000138,2]
[340461844,1729275040752,-3537.73874138,0.000138,2]
[340461845,1729275040763,-13162.4,0.000138,2]
[340461854,1729275043121,-847.27,0.00012278,2]
[340461855,1729275043131,-478.83937951,0.000138,2]
[340461856,1729275043146,-695.84866301,0.000138,2]
[340461857,1729275043252,-269.95477448,0.000138,2]
[340461858,1729275043264,-2837.7847,0.000138,2]
[340461859,1729275043276,-7156.919443,0.000138,2]
[340461860,1729275043361,-279700.57268195,0.000138,2]
[340461861,1729275043371,-179.3,0.00013932,2]
[340461862,1729275043381,-2577.53683979,0.00013933,2]
[340461863,1729275043390,-200.0,0.00013948,2]
[340461864,1729275043400,-1225.82,0.00014066,2]
[340461865,1729275043409,-1225.82,0.0001407,2]
[340461866,1729275043418,-1225.82,0.00014073,2]
[340461867,1729275043428,-1225.82,0.00014077,2]
[340461868,1729275043436,-1225.82,0.00014081,2]
[340461869,1729275043445,-1225.82,0.00014084,2]
[340461870,1729275043454,-1225.82,0.00014088,2]
[340461871,1729275043463,-1225.82,0.00014092,2]
[340461872,1729275043472,-1225.82,0.00014096,2]
[340461873,1729275043481,-1225.82,0.00014099,2]
[340461874,1729275043490,-1225.82,0.00014103,2]
[340461875,1729275043498,-1225.82,0.00014107,2]
[340461876,1729275043508,-1225.82,0.0001411,2]
[340461877,1729275043517,-1225.82,0.00014114,2]
[340461878,1729275043527,-1225.82,0.00014118,2]
[340461879,1729275043535,-1225.82,0.00014121,2]
[340461880,1729275043545,-1225.82,0.00014125,2]
[340461881,1729275043554,-1225.82,0.00014129,2]
[340461882,1729275043562,-1225.82,0.00014133,2]
[340461883,1729275043571,-1225.82,0.00014136,2]
[340461884,1729275043580,-182.1,0.0001418,2]
[340461885,1729275043589,-266.4,0.00014367,2]
[340461886,1729275043598,-266.4,0.00014992,2]
[340461887,1729275043607,-5323.0,0.00015,2]
[340461888,1729275043616,-1320.0,0.00015,2]
[340461889,1729275043625,-170.14,0.00015238,2]
[340461890,1729275043634,-179.3,0.0001548,2]
[340461891,1729275043643,-2577.53683979,0.000155,2]
[340461892,1729275043652,-640.65,0.00015662,2]
[340461893,1729275043661,-412.6097,0.00016274,2]
[340461894,1729275043670,-287.887,0.00016299,2]
[340461895,1729275043679,-150.0,0.00016438,2]
[340461896,1729275043688,-176.89,0.00016438,2]
[340461897,1729275043697,-150.0,0.00016575,2]
[340461898,1729275043706,-150.0,0.00016712,2]
[340461899,1729275043716,-150.0,0.00016849,2]
[340461900,1729275043728,-212.86,0.00016976,2]
[340461901,1729275043738,-150.0,0.00016986,2]
[340461902,1729275043747,-179.3,0.00017027,2]
[340461903,1729275043756,-2577.53683979,0.00017067,2]
[340461904,1729275043767,-150.0,0.00017123,2]
[340461905,1729275043776,-847.27,0.00017189,2]
[340461906,1729275043786,-150.0,0.0001726,2]
[340461907,1729275043795,-150.0,0.00017397,2]
[340461908,1729275043806,-286.71443665,0.00017534,2]
[340461909,1729275043816,-176.47,0.00017592,2]
[340461910,1729275043826,-263.22,0.00017592,2]
[340461911,1729275043835,-267.0,0.0001782,2]
[340461912,1729275043845,-180.13590471,0.000179,2]
[340461913,1729275043854,-640.65,0.00017926,2]
[340461914,1729275043863,-170.14,0.00018286,2]
[340461915,1729275043873,-179.3,0.00018575,2]
[340461916,1729275043882,-626.78708269,0.00018633,2]
[340462001,1729275046070,-1950.7497571,0.00018633,2]
[340462002,1729275046081,-444.3502429,0.00019178,2]
[340462003,1729275046092,-290.5897571,0.00019178,2]
[340462004,1729275046102,-365.69290008,0.0002,2]
[340462005,1729275046111,-151.43,0.0002,2]
[340462006,1729275046121,-137.03749507,0.0002,2]
[340462007,1729275046132,-14.39250493,0.0002,2]
[340462008,1729275046142,-151.43,0.0002,2]
[340462009,1729275046151,-151.43,0.0002,2]
[340462010,1729275046160,-151.43,0.0002,2]
[340462011,1729275046169,-151.43,0.0002,2]
[340462012,1729275046179,-151.43,0.0002,2]
[340462013,1729275046189,-151.43,0.0002,2]
[340462014,1729275046198,-640.65,0.0002019,2]
[340462015,1729275046207,-2577.53683979,0.000202,2]
[340462016,1729275046216,-267.0,0.0002036,2]
[340462017,1729275046226,-182.1,0.00021269,2]
[340462018,1729275046235,-1000.0,0.00021313,2]
[340462019,1729275046244,-2577.53683979,0.00021767,2]
[340462020,1729275046253,-428.26,0.00021918,2]
[340462021,1729275046262,-286.95,0.00021918,2]
[340462022,1729275046271,-402.13,0.00022137,30]
[340462023,1729275046281,-640.65,0.00022454,2]
[340462024,1729275046290,-3000.0,0.000225,2]
[340462025,1729275046299,-267.0,0.0002289,2]
[340462026,1729275046308,-314.52,0.00023,2]
[340462027,1729275046317,-1010.56,0.00023,2]
[340462028,1729275046328,-2577.53683979,0.00023333,2]
[340462029,1729275046337,-1000.0,0.00023977,2]
[340462030,1729275046346,-176.47,0.00024225,2]
[340462031,1729275046356,-263.22,0.00024225,2]
[340462032,1729275046365,-1010.56,0.00024575,2]
[340462034,1729275046373,-500.0,0.00024658,7]
[340462035,1729275046382,-1000.0,0.00024658,2]
[340462036,1729275046391,-314.52,0.00024675,2]
[340462037,1729275046400,-150.0,0.00024709,2]
[340462038,1729275046409,-150.0,0.00024711,2]
[340462039,1729275046418,-150.0,0.00024712,2]
[340462040,1729275046427,-640.65,0.00024718,2]
[340462041,1729275046436,-150.0,0.00024718,2]
[340462042,1729275046445,-150.0,0.00024719,2]
[340462043,1729275046454,-402.13,0.00024721,30]
[340462044,1729275046463,-151.85608626,0.00024728,2]
[340462045,1729275046472,-150.0,0.00024735,2]
[340462046,1729275046481,-150.0,0.0002474,2]
[340462047,1729275046490,-168.89952003,0.00024743,2]
[340462048,1729275046499,-150.0,0.00024744,2]
[340462049,1729275046508,-400.0,0.00024748,5]
[340462050,1729275046517,-150.0,0.00024758,2]
[340462051,1729275046526,-150.0,0.00024763,2]
[340462052,1729275046535,-150.0,0.00024767,2]
[340462053,1729275046544,-150.0,0.0002477,2]
[340462054,1729275046554,-150.0,0.00024779,2]
[340462055,1729275046562,-150.0,0.00024781,2]
[340462056,1729275046571,-150.0,0.00024784,2]
[340462057,1729275046580,-150.0,0.0002479,2]
[340462058,1729275046589,-150.0,0.00024799,2]
[340462059,1729275046598,-150.0,0.00024807,2]
[340462060,1729275046608,-150.0,0.00024818,2]
[340462061,1729275046616,-562.228,0.00024831,8]
[340462062,1729275046626,-176.58,0.00024831,8]
[340462063,1729275046635,-239.17953984,0.00024831,2]
[340462064,1729275046644,-150.0,0.00024833,2]
[340462065,1729275046652,-300.0,0.00024839,2]
[340462066,1729275046661,-150.0,0.0002484,2]
[340462067,1729275046670,-150.0,0.0002484,2]
[340462068,1729275046679,-150.0,0.00024849,2]
[340462069,1729275046688,-150.0,0.00024853,2]
[340462070,1729275046697,-150.0,0.00024855,2]
[340462071,1729275046706,-239.17953983,0.00024866,2]
[340462072,1729275046716,-300.0,0.0002487,2]
[340462073,1729275046728,-150.0,0.00024874,2]
[340462074,1729275046738,-150.0,0.00024879,2]
[340462075,1729275046747,-2000.0,0.000249,2]
[340462076,1729275046756,-300.0,0.000249,2]
[340462077,1729275046766,-416.0,0.000249,8]
[340462078,1729275046775,-2577.53683979,0.000249,2]
[340462079,1729275046783,-180.13590471,0.000249,2]
[340462080,1729275046792,-152.62,0.000249,31]
[340462081,1729275046802,-152.62,0.000249,31]
[340462082,1729275046810,-152.62,0.000249,31]
[340462083,1729275046821,-152.62,0.000249,31]
[340462084,1729275046830,-152.62,0.000249,31]
[340462085,1729275046839,-152.62,0.000249,31]
[340462086,1729275046848,-152.62,0.000249,31]
[340462087,1729275046857,-152.62,0.000249,31]
[340462088,1729275046866,-152.62,0.000249,31]
[340462089,1729275046875,-152.62,0.000249,31]
[340462090,1729275046884,-152.62,0.000249,31]
[340462091,1729275046893,-152.62,0.000249,31]
[340462092,1729275046902,-152.62,0.000249,31]
[340462093,1729275046911,-152.62,0.000249,31]
[340462094,1729275046919,-239.17953983,0.000249,2]
[340462095,1729275046930,-150.0,0.00024904,2]
[340462096,1729275046939,-150.0,0.00024908,2]
[340462097,1729275046947,-150.0,0.0002491,2]
[340462098,1729275046956,-150.0,0.00024914,2]
[340462099,1729275046966,-187.5332026,0.00024921,2]
[340462100,1729275046976,-151.43,0.00024921,2]
[340462101,1729275046985,-150.0,0.00024924,2]
[340462102,1729275046994,-150.0,0.00024927,2]
[340462103,1729275047003,-260.29734631,0.0002493,2]
[340462104,1729275047012,-5724.78735399,0.0002493,2]
[340462105,1729275047021,-151.0,0.00024931,7]
[340462106,1729275047031,-151.0,0.00024931,7]
[340462107,1729275047040,-173.172663,0.00024931,7]
[340462108,1729275047049,-348.25391194,0.00024931,2]
[340462109,1729275047060,-600.0,0.00024931,9]
[340462110,1729275047070,-600.0,0.00024931,9]
[340462111,1729275047080,-600.0,0.00024931,9]